fUSD/lending_fUSD_20250225
["ID","MTS","AMOUNT","RATE_DAILY","PERIOD"]
[354484921,1740527444267,-500.0,0.00046575,120]
[354484922,1740527444277,-500.0,0.00046575,120]
[354484923,1740527444288,-500.0,0.00046575,120]
[354484924,1740527444298,-500.0,0.00046575,120]
[354484925,1740527444309,-949.31,0.00046575,120]
[354484926,1740527444319,-598.58,0.00046575,120]
[354484927,1740527444329,-1255.67,0.00046575,120]
[354484928,1740527444340,-595.37,0.00046575,120]
[354484929,1740527444350,-500.0,0.00046575,120]
[354484930,1740527444359,-500.0,0.00046575,120]
[354484931,1740527444369,-647.55,0.00046575,120]
[354484932,1740527444379,-500.0,0.00046575,120]
[354484933,1740527444388,-500.0,0.00046575,120]
[354484934,1740527444398,-922.62,0.00046575,120]
[354484935,1740527444407,-1355.4,0.00046575,120]
[354484936,1740527444417,-500.0,0.00046575,120]
[354484937,1740527444427,-500.0,0.00046575,120]
[354484938,1740527444437,-500.0,0.00046575,120]
[354484939,1740527444448,-500.0,0.00046575,120]
[354484940,1740527444458,-759.66,0.00046575,120]
[354484941,1740527444467,-341.32507281,0.00046575,120]
[354484942,1740527445014,-158.67492719,0.00046575,120]
[354484943,1740527445024,-1125.60305107,0.00046575,120]
[354484944,1740527445035,-350.24461187,0.00046575,120]
[354484945,1740527445047,-587.52026803,0.00046575,120]
[354484946,1740527445083,-418.28206903,0.00046575,120]
[354484947,1740527445092,-536.11155095,0.00046575,120]
[354484948,1740527445104,-234.81844905,0.00046575,120]
[354484949,1740527445114,-728.43279197,0.00046575,120]
[354484950,1740527445125,-790.89720803,0.00046575,120]
[354484951,1740527445134,-500.0,0.00046575,120]
[354484952,1740527445144,-578.16,0.00046575,120]
[354484953,1740527445153,-1815.2,0.00046575,120]
[354484954,1740527445163,-500.0,0.00046575,120]
[354484955,1740527445172,-2412.76606098,0.00046575,120]
[354484956,1740527445184,-31.38393902,0.00046575,120]
[354484957,1740527445193,-2137.76,0.00046575,30]
[354484958,1740527445203,-1036.37,0.00046575,120]
[354484959,1740527445220,-415.87201711,0.00046575,120]
[354484960,1740527445236,-240.90365716,0.00046575,120]
[354484961,1740527445246,-433.29673313,0.00046575,120]
[354484962,1740527445255,-500.0,0.00046575,120]
[354484963,1740527445265,-500.0,0.00046575,120]
[354484964,1740527445275,-500.0,0.00046575,120]
[354484965,1740527445285,-1896.06,0.00046575,120]
[354484966,1740527445295,-500.0,0.00046575,120]
[354484967,1740527445304,-1402.88,0.00046575,120]
[354484968,1740527445315,-173.6472,0.00046575,120]
[354484969,1740527445324,-800.38,0.00046575,120]
[354484970,1740527445334,-999.76,0.00046575,120]
[354484971,1740527445343,-596.9,0.00046575,120]
[354484972,1740527445353,-624.45,0.00046575,30]
[354484973,1740527445362,-2998.83,0.00046575,120]
[354484974,1740527445372,-500.0,0.00046575,120]
[354484975,1740527445382,-500.0,0.00046575,120]
[354484976,1740527445392,-500.0,0.00046575,120]
[354484977,1740527445402,-678.0,0.00046575,120]
[354484978,1740527445412,-500.0,0.00046575,120]
[354484979,1740527445423,-150.33445161,0.00046575,120]
[354484980,1740527445433,-500.0,0.00046575,120]
[354484981,1740527445443,-2005.24,0.00046575,120]
[354484982,1740527445452,-500.0,0.00046575,120]
[354484983,1740527445462,-500.0,0.00046575,120]
[354484984,1740527445472,-500.0,0.00046575,120]
[354484985,1740527445482,-563.08,0.00046575,120]
[354484986,1740527445492,-1793.23,0.00046575,120]
[354484987,1740527445502,-592.71,0.00046575,120]
[354484988,1740527445512,-603.65,0.00046575,60]
[354484989,1740527445521,-501.94831802,0.00046575,120]
[354484990,1740527445531,-500.0,0.00046575,120]
[354484991,1740527445540,-500.0,0.00046575,120]
[354484992,1740527445550,-530.13294794,0.00046575,120]
[354484993,1740527445559,-1849.3,0.00046575,120]
[354484994,1740527445568,-500.0,0.00046575,120]
[354484995,1740527445578,-500.0,0.00046575,120]
[354484996,1740527445588,-500.0,0.00046575,120]
[354484997,1740527445597,-665.86,0.00046575,120]
[354484998,1740527445607,-594.72701129,0.00046575,120]
[354484999,1740527445616,-500.0,0.00046575,120]
[354485000,1740527445626,-3215.5,0.00046575,120]
[354485001,1740527445636,-500.0,0.00046575,120]
[354485002,1740527445646,-500.0,0.00046575,120]
[354485003,1740527445656,-1424.52,0.00046575,120]
[354485004,1740527445665,-500.0,0.00046575,120]
[354485005,1740527445676,-682.88,0.00046575,120]
[354485006,1740527445686,-500.0,0.00046575,120]
[354485007,1740527445695,-500.0,0.00046575,120]
[354485008,1740527445705,-1483.57,0.00046575,120]
[354485009,1740527445715,-1717.28,0.00046575,120]
[354485010,1740527445724,-777.05,0.00046575,120]
[354485011,1740527445734,-772.07,0.00046575,120]
[354485012,1740527445744,-500.0,0.00046575,120]
[354485013,1740527445753,-769.81,0.00046575,120]
[354485014,1740527445763,-500.0,0.00046575,120]
[354485015,1740527445773,-500.0,0.00046575,120]
[354485016,1740527445783,-500.0,0.00046575,120]
[354485017,1740527445792,-1557.71,0.00046575,120]
[354485018,1740527445802,-500.0,0.00046575,120]
[354485020,1740527445811,-1215.49,0.00046575,120]
[354485022,1740527445821,-536.43,0.00046575,120]
[354485023,1740527445831,-2780.08,0.00046575,120]
[354485024,1740527445840,-500.0,0.00046575,120]
[354485025,1740527445850,-598.55,0.00046575,120]
[354485026,1740527445858,-512.98,0.00046575,120]
[354485027,1740527445868,-952.93,0.00046575,120]
[354485028,1740527445877,-978.21,0.00046575,120]
[354485029,1740527445887,-530.26,0.00046575,120]
[354485030,1740527445897,-1310.38,0.00046575,120]
[354485031,1740527445907,-500.0,0.00046575,120]
[354485032,1740527445916,-500.0,0.00046575,120]
[354485033,1740527445925,-995.99,0.00046575,120]
[354485034,1740527445935,-1622.4,0.00046575,120]
[354485035,1740527445944,-522.27,0.00046575,120]
[354485036,1740527445954,-1470.07,0.00046575,120]
[354485037,1740527445963,-500.0,0.00046575,120]
[354485038,1740527445973,-500.0,0.00046575,120]
[354485039,1740527445983,-500.0,0.00046575,120]
[354485040,1740527445992,-1618.81,0.00046575,120]
[354485041,1740527446002,-500.0,0.00046575,120]
[354485042,1740527446011,-552.95,0.00046575,120]
[354485043,1740527446021,-500.0,0.00046575,120]
[354485044,1740527446031,-500.0,0.00046575,120]
[354485045,1740527446040,-1344.74,0.00046575,120]
[354485046,1740527446050,-1817.26,0.00046575,120]
[354485047,1740527446060,-1235.37,0.00046575,120]
[354485048,1740527446070,-500.0,0.00046575,120]
[354485049,1740527446080,-500.0,0.00046575,120]
[354485050,1740527446089,-2305.22,0.00046575,120]
[354485051,1740527446099,-500.0,0.00046575,120]
[354485052,1740527446109,-606.33,0.00046575,120]
[354485053,1740527446118,-500.0,0.00046575,120]
[354485054,1740527446128,-500.0,0.00046575,120]
[354485055,1740527446138,-500.0,0.00046575,120]
[354485056,1740527446147,-856.93,0.00046575,120]
[354485057,1740527446157,-894.42,0.00046575,120]
[354485058,1740527446167,-1456.09,0.00046575,120]
[354485059,1740527446177,-713.98,0.00046575,120]
[354485060,1740527446187,-500.0,0.00046575,120]
[354485061,1740527446197,-2533.88,0.00046575,120]
[354485062,1740527446207,-500.0,0.00046575,120]
[354485063,1740527446220,-2036.92,0.00046575,120]
[354485064,1740527446229,-693.4,0.00046575,120]
[354485065,1740527446239,-802.77,0.00046575,120]
[354485066,1740527446249,-500.0,0.00046575,120]
[354485067,1740527446261,-3122.89,0.00046575,120]
[354485068,1740527446271,-500.0,0.00046575,120]
[354485069,1740527446281,-500.0,0.00046575,120]
[354485070,1740527446291,-1117.58,0.00046575,120]
[354485071,1740527446302,-500.0,0.00046575,120]
[354485072,1740527446312,-975.13,0.00046575,120]
[354485073,1740527446323,-1187.14,0.00046575,120]
[354485074,1740527446333,-1559.2,0.00046575,120]
[354485075,1740527446343,-500.0,0.00046575,120]
[354485076,1740527446353,-928.64,0.00046575,120]
[354485077,1740527446363,-1234.62,0.00046575,120]
[354485079,1740527446373,-1380.86,0.00046575,120]
[354485081,1740527446383,-547.74,0.00046575,120]
[354485083,1740527446462,-500.0,0.00046575,120]
[354485084,1740527446473,-500.0,0.00046575,120]
[354485085,1740527446483,-500.0,0.00046575,120]
[354485086,1740527446493,-1727.59,0.00046575,120]
[354485087,1740527446502,-920.51,0.00046575,120]
[354485088,1740527446511,-500.0,0.00046575,120]
[354485089,1740527446521,-1542.92,0.00046575,120]
[354485090,1740527446530,-500.0,0.00046575,120]
[354485091,1740527446540,-998.43,0.00046575,120]
[354485092,1740527446549,-500.0,0.00046575,120]
[354485093,1740527446559,-868.39,0.00046575,120]
[354485094,1740527446568,-500.0,0.00046575,120]
[354485095,1740527446578,-500.0,0.00046575,120]
[354485096,1740527446587,-500.0,0.00046575,120]
[354485097,1740527446596,-500.0,0.00046575,120]
[354485098,1740527446606,-612.39,0.00046575,120]
[354485099,1740527446615,-583.19,0.00046575,120]
[354485100,1740527446625,-2102.06,0.00046575,120]
[354485101,1740527446634,-501.15305456,0.00046575,120]
[354485102,1740527446644,-500.0,0.00046575,120]
[354485103,1740527446653,-500.0,0.00046575,120]
[354485104,1740527446663,-759.3,0.00046575,120]
[354485105,1740527446672,-546.16478532,0.00046575,120]
[354485106,1740527446681,-500.0,0.00046575,120]
[354485107,1740527446691,-2237.38,0.00046575,120]
[354485108,1740527446700,-500.0,0.00046575,120]
[354485109,1740527446710,-990.28,0.00046575,120]
[354485110,1740527446720,-249.017467,0.00046575,120]
[354485111,1740527446729,-326.80659595,0.00046575,120]
[354485112,1740527446739,-858.67,0.00046575,120]
[354485113,1740527446749,-500.0,0.00046575,120]
[354485114,1740527446758,-500.0,0.00046575,120]
[354485115,1740527446768,-500.0,0.00046575,120]
[354485116,1740527446778,-2540.7,0.00046575,120]
[354485117,1740527446787,-500.0,0.00046575,120]
[354485118,1740527446796,-500.0,0.00046575,120]
[354485119,1740527446806,-1315.23,0.00046575,120]
[354485120,1740527446816,-500.0,0.00046575,120]
[354485121,1740527446825,-500.0,0.00046575,120]
[354485122,1740527446835,-500.0,0.00046575,120]
[354485123,1740527446846,-762.04,0.00046575,120]
[354485124,1740527446855,-500.0,0.00046575,120]
[354485125,1740527446864,-1714.11,0.00046575,120]
[354485126,1740527446874,-500.0,0.00046575,120]
[354485127,1740527446883,-500.0,0.00046575,120]
[354485128,1740527446893,-1291.66,0.00046575,120]
[354485129,1740527446902,-500.0,0.00046575,120]
[354485130,1740527446912,-1362.81,0.00046575,120]
[354485131,1740527446922,-503.73954711,0.00046575,60]
[354485132,1740527446932,-500.0,0.00046575,120]
[354485133,1740527446941,-500.0,0.00046575,120]
[354485134,1740527446951,-1122.97,0.00046575,120]
[354485135,1740527446960,-2146.63,0.00046575,120]
[354485136,1740527446970,-500.0,0.00046575,120]
[354485137,1740527446980,-596.2,0.00046575,120]
[354485138,1740527446990,-562.94,0.00046575,120]
[354485139,1740527446999,-1309.62,0.00046575,120]
[354485140,1740527447008,-2428.15,0.00046575,120]
[354485141,1740527447018,-798.0,0.00046575,120]
[354485142,1740527447027,-500.0,0.00046575,120]
[354485143,1740527447036,-500.0,0.00046575,120]
[354485144,1740527447045,-1433.65,0.00046575,120]
[354485145,1740527447056,-548.25,0.00046575,120]
[354485146,1740527447065,-271.93482076,0.00046575,120]
[354485147,1740527447075,-502.5058485,0.00046575,120]
[354485148,1740527447085,-500.0,0.00046575,120]
[354485149,1740527447094,-500.0,0.00046575,120]
[354485150,1740527447104,-1305.74,0.00046575,120]
[354485151,1740527447113,-1393.4,0.00046575,120]
[354485152,1740527447123,-1348.33,0.00046575,120]
[354485153,1740527447132,-5415.15,0.00046575,120]
[354485154,1740527447142,-500.0,0.00046575,120]
[354485155,1740527447151,-500.0,0.00046575,120]
[354485156,1740527447161,-382.64790094,0.00046575,120]
[354485157,1740527447170,-611.39,0.00046575,120]
[354485158,1740527447180,-1739.65,0.00046575,120]
[354485159,1740527447189,-790.91,0.00046575,120]
[354485160,1740527447198,-2702.2,0.00046575,120]
[354485161,1740527447212,-500.0,0.00046575,120]
[354485162,1740527447222,-500.0,0.00046575,120]
[354485163,1740527447232,-500.0,0.00046575,120]
[354485164,1740527447242,-500.0,0.00046575,120]
[354485165,1740527447251,-1508.77,0.00046575,120]
[354485166,1740527447262,-2189.76,0.00046575,120]
[354485167,1740527447271,-500.0,0.00046575,120]
[354485168,1740527447280,-1538.64,0.00046575,120]
[354485169,1740527447291,-503.24,0.00046575,120]
[354485170,1740527447301,-173.6472,0.00046575,120]
[354485171,1740527447310,-4086.91,0.00046575,120]
[354485172,1740527447320,-500.0,0.00046575,120]
[354485173,1740527447331,-500.0,0.00046575,120]
[354485174,1740527447341,-500.0,0.00046575,120]
[354485175,1740527447351,-503.79034222,0.00046575,120]
[354485176,1740527447361,-555.94,0.00046575,120]
[354485177,1740527447370,-673.54,0.00046575,120]
[354485178,1740527447380,-2715.9,0.00046575,120]
[354485179,1740527447389,-500.0,0.00046575,120]
[354485180,1740527447399,-213.49435158,0.00046575,120]
[354485181,1740527447408,-1188.47,0.00046575,120]
[354485182,1740527447418,-500.0,0.00046575,120]
[354485183,1740527447428,-500.0,0.00046575,120]
[354485184,1740527447438,-917.21,0.00046575,120]
[354485185,1740527447449,-1087.2,0.00046575,120]
[354485186,1740527447458,-4846.22,0.00046575,120]
[354485187,1740527447468,-1541.67,0.00046575,120]
[354485188,1740527447477,-500.0,0.00046575,120]
[354485189,1740527447487,-500.0,0.00046575,120]
[354485190,1740527447497,-709.44,0.00046575,120]
[354485191,1740527447506,-6441.32,0.00046575,120]
[354485192,1740527447515,-641.72,0.00046575,120]
[354485193,1740527447525,-1537.06,0.00046575,120]
[354485194,1740527447535,-2621.13,0.00046575,120]
[354485195,1740527447544,-481.13485957,0.00046575,120]
[354485196,1740527447553,-1766.87,0.00046575,120]
[354485197,1740527447563,-500.0,0.00046575,120]
[354485198,1740527447572,-4264.08,0.00046575,120]
[354485199,1740527447582,-501.74509218,0.00046575,120]
[354485200,1740527447591,-500.0,0.00046575,120]
[354485201,1740527447601,-498.30835359,0.00046575,120]
[354485202,1740527447610,-500.0,0.00046575,120]
[354485203,1740527447620,-1146.93,0.00046575,120]
[354485204,1740527447630,-500.0,0.00046575,120]
[354485205,1740527447639,-2993.23,0.00046575,120]
[354485206,1740527447648,-1655.57,0.00046575,120]
[354485207,1740527447658,-500.0,0.00046575,120]
[354485208,1740527447667,-583.02,0.00046575,120]
[354485209,1740527447676,-580.82,0.00046575,120]
[354485210,1740527447686,-805.66,0.00046575,120]
[354485211,1740527447695,-4964.88,0.00046575,120]
[354485212,1740527447705,-1389.36,0.00046575,120]
[354485213,1740527447715,-1074.88,0.00046575,120]
[354485214,1740527447725,-500.0,0.00046575,120]
[354485215,1740527447735,-601.48085598,0.00046575,120]
[354485216,1740527447745,-3500.0,0.00046575,120]
[354485217,1740527447755,-501.47082259,0.00046575,120]
[354485218,1740527447765,-500.0,0.00046575,120]
[354485219,1740527447775,-502.18934387,0.00046575,120]
[354485220,1740527447784,-500.0,0.00046575,120]
[354485221,1740527447793,-2523.22,0.00046575,120]
[354485222,1740527447802,-2551.04,0.00046575,120]
[354485223,1740527447812,-500.0,0.00046575,120]
[354485224,1740527447821,-4740.15,0.00046575,120]
[354485225,1740527447831,-1489.41,0.00046575,7]
[354485226,1740527447841,-3223.37,0.00046575,120]
[354485227,1740527447850,-500.0,0.00046575,120]
[354485228,1740527447860,-500.0,0.00046575,120]
[354485229,1740527447869,-500.0,0.00046575,120]
[354485230,1740527447879,-500.0,0.00046575,120]
[354485231,1740527447889,-500.0,0.00046575,120]
[354485232,1740527447898,-500.0,0.00046575,120]
[354485233,1740527447908,-500.0,0.00046575,120]
[354485234,1740527447918,-739.2,0.00046575,120]
[354485235,1740527447928,-1568.28,0.00046575,120]
[354485236,1740527447937,-502.30392516,0.00046575,120]
[354485237,1740527447947,-1505.73,0.00046575,120]
[354485238,1740527447956,-500.0,0.00046575,120]
[354485239,1740527447965,-500.0,0.00046575,120]
[354485240,1740527447975,-460.60095334,0.00046575,120]
[354485241,1740527447984,-2194.38,0.00046575,120]
[354485242,1740527447993,-2425.43,0.00046575,120]
[354485243,1740527448003,-500.0,0.00046575,120]
[354485244,1740527448012,-500.0,0.00046575,120]
[354485245,1740527448022,-4683.04,0.00046575,120]
[354485246,1740527448032,-500.0,0.00046575,120]
[354485247,1740527448041,-2682.39,0.00046575,120]
[354485248,1740527448050,-500.0,0.00046575,120]
[354485249,1740527448060,-500.0,0.00046575,120]
[354485250,1740527448070,-2490.09,0.00046575,120]
[354485251,1740527448079,-500.0,0.00046575,120]
[354485252,1740527448088,-2268.16,0.00046575,120]
[354485253,1740527448097,-3962.11,0.00046575,120]
[354485254,1740527448107,-500.0,0.00046575,120]
[354485255,1740527448116,-2387.4,0.00046575,120]
[354485256,1740527448125,-500.0,0.00046575,120]
[354485257,1740527448135,-500.0,0.00046575,120]
[354485258,1740527448144,-500.0,0.00046575,120]
[354485259,1740527448153,-604.77,0.00046575,120]
[354485260,1740527448163,-500.0,0.00046575,120]
[354485261,1740527448172,-2897.77,0.00046575,120]
[354485262,1740527448182,-500.0,0.00046575,120]
[354485263,1740527448191,-500.0,0.00046575,120]
[354485264,1740527448200,-500.0,0.00046575,120]
[354485265,1740527448211,-2112.75,0.00046575,120]
[354485266,1740527448223,-500.0,0.00046575,120]
[354485267,1740527448232,-502.00591203,0.00046575,120]
[354485268,1740527448242,-940.45,0.00046575,120]
[354485269,1740527448253,-738.96,0.00046575,120]
[354485270,1740527448263,-500.0,0.00046575,120]
[354485271,1740527448274,-503.64,0.00046575,120]
[354485272,1740527448283,-2628.8,0.00046575,120]
[354485273,1740527448294,-502.29869671,0.00046575,120]
[354485274,1740527448303,-500.0,0.00046575,120]
[354485275,1740527448313,-500.0,0.00046575,120]
[354485276,1740527448323,-1897.09,0.00046575,120]
[354485277,1740527448332,-1894.19,0.00046575,120]
[354485278,1740527448341,-1326.59,0.00046575,120]
[354485279,1740527448351,-264.19253917,0.00046575,120]
[354485280,1740527448378,-238.28997595,0.00046575,120]
[354485281,1740527448388,-3167.9,0.00046575,120]
[354485282,1740527448397,-500.0,0.00046575,120]
[354485283,1740527448407,-500.0,0.00046575,120]
[354485284,1740527448416,-500.0,0.00046575,120]
[354485285,1740527448426,-500.0,0.00046575,120]
[354485286,1740527448436,-500.0,0.00046575,120]
[354485287,1740527448445,-4413.18,0.00046575,120]
[354485288,1740527448455,-502.41173364,0.00046575,120]
[354485289,1740527448464,-1086.1,0.00046575,120]
[354485290,1740527448477,-2260.53,0.00046575,120]
[354485291,1740527448487,-500.0,0.00046575,120]
[354485292,1740527448496,-1230.44,0.00046575,120]
[354485293,1740527448506,-1703.81,0.00046575,120]
[354485294,1740527448515,-656.55,0.00046575,120]
[354485295,1740527448525,-1727.26,0.00046575,120]
[354485296,1740527448535,-500.0,0.00046575,120]
[354485297,1740527448546,-519.51692336,0.00046575,120]
[354485298,1740527448556,-500.0,0.00046575,120]
[354485299,1740527448565,-503.72863326,0.00046575,120]
[354485300,1740527448575,-969.32,0.00046575,120]
[354485301,1740527448585,-1500.0,0.00046575,120]
[354485302,1740527448594,-500.0,0.00046575,120]
[354485303,1740527448603,-724.06,0.00046575,120]
[354485304,1740527448613,-500.0,0.00046575,120]
[354485305,1740527448623,-1813.23,0.00046575,120]
[354485306,1740527448633,-2406.4,0.00046575,120]
[354485307,1740527448642,-504.66141216,0.00046575,120]
[354485308,1740527448651,-1834.0,0.00046575,120]
[354485309,1740527448659,-508.31523706,0.00046575,120]
[354485310,1740527448667,-500.0,0.00046575,120]
[354485311,1740527448677,-1246.0,0.00046575,120]
[354485312,1740527448686,-1246.0,0.00046575,120]
[354485313,1740527448695,-1246.0,0.00046575,120]
[354485314,1740527448705,-1246.0,0.00046575,120]
[354485315,1740527448714,-874.81,0.00046575,120]
[354485316,1740527448724,-500.0,0.00046575,120]
[354485317,1740527448734,-610.51608761,0.00046575,120]
[354485318,1740527448743,-1422.45,0.00046575,2]
[354485319,1740527448753,-2255.25,0.00046575,120]
[354485320,1740527448762,-629.65,0.00046575,120]
[354485321,1740527448771,-503.7906561,0.00046575,120]
[354485322,1740527448780,-1521.62,0.00046575,120]
[354485323,1740527448790,-786.94,0.00046575,120]
[354485324,1740527448799,-500.0,0.00046575,120]
[354485325,1740527448809,-1030.44,0.00046575,120]
[354485326,1740527448818,-503.06646742,0.00046575,120]
[354485327,1740527448827,-566.13,0.00046575,120]
[354485328,1740527448837,-3874.24,0.00046575,120]
[354485329,1740527448846,-500.0,0.00046575,120]
[354485330,1740527448856,-500.0,0.00046575,120]
[354485331,1740527448866,-6358.87,0.00046575,120]
[354485332,1740527448875,-500.0,0.00046575,120]
[354485333,1740527448884,-530.03057096,0.00046575,120]
[354485334,1740527448893,-5413.15,0.00046575,120]
[354485335,1740527448903,-500.0,0.00046575,120]
[354485336,1740527448912,-500.0,0.00046575,120]
[354485337,1740527448921,-500.0,0.00046575,120]
[354485338,1740527448931,-500.0,0.00046575,120]
[354485339,1740527448940,-1707.44,0.00046575,120]
[354485340,1740527448949,-2460.38,0.00046575,120]
[354485341,1740527448958,-500.0,0.00046575,120]
[354485342,1740527448968,-500.0,0.00046575,120]
[354485343,1740527448978,-1079.41,0.00046575,120]
[354485344,1740527448987,-2216.4,0.00046575,120]
[354485345,1740527448997,-500.0,0.00046575,120]
[354485346,1740527449006,-2349.21,0.00046575,120]
[354485347,1740527449015,-2377.85,0.00046575,120]
[354485348,1740527449024,-504.19632499,0.00046575,120]
[354485349,1740527449033,-665.5,0.00046575,120]
[354485350,1740527449043,-500.0,0.00046575,120]
[354485351,1740527449052,-503.05963733,0.00046575,120]
[354485352,1740527449061,-1011.97,0.00046575,120]
[354485353,1740527449070,-745.32,0.00046575,120]
[354485354,1740527449080,-500.0,0.00046575,120]
[354485355,1740527449089,-504.41269207,0.00046575,120]
[354485356,1740527449098,-500.0,0.00046575,120]
[354485357,1740527449108,-1886.46,0.00046575,120]
[354485358,1740527449117,-5322.32,0.00046575,120]
[354485359,1740527449127,-3076.08,0.00046575,120]
[354485360,1740527449136,-500.0,0.00046575,120]
[354485361,1740527449145,-500.0,0.00046575,120]
[354485362,1740527449154,-808.1,0.00046575,120]
[354485363,1740527449163,-779.0,0.00046575,120]
[354485364,1740527449172,-500.0,0.00046575,120]
[354485365,1740527449182,-500.0,0.00046575,120]
[354485366,1740527449191,-500.0,0.00046575,120]
[354485367,1740527449201,-500.0,0.00046575,120]
[354485368,1740527449214,-500.0,0.00046575,120]
[354485369,1740527449225,-500.0,0.00046575,120]
[354485370,1740527449235,-968.45,0.00046575,120]
[354485371,1740527449244,-500.0,0.00046575,120]
[354485372,1740527449254,-501.96953405,0.00046575,120]
[354485373,1740527449264,-1668.43,0.00046575,120]
[354485374,1740527449273,-1482.89,0.00046575,120]
[354485375,1740527449283,-500.0,0.00046575,120]
[354485376,1740527449293,-504.23690688,0.00046575,120]
[354485377,1740527449302,-500.0,0.00046575,120]
[354485378,1740527449312,-4105.87,0.00046575,120]
[354485379,1740527449321,-501.94723504,0.00046575,120]
[354485380,1740527449331,-500.0,0.00046575,120]
[354485381,1740527449340,-500.0,0.00046575,120]
[354485382,1740527449350,-500.0,0.00046575,120]
[354485383,1740527449359,-2349.21,0.00046575,120]
[354485384,1740527449369,-500.0,0.00046575,120]
[354485385,1740527449379,-1239.73,0.00046575,120]
[354485386,1740527449388,-500.0,0.00046575,120]
[354485387,1740527449397,-500.0,0.00046575,120]
[354485388,1740527449406,-1551.52,0.00046575,120]
[354485389,1740527449416,-979.82,0.00046575,120]
[354485390,1740527449425,-783.16,0.00046575,120]
[354485391,1740527449435,-583.15,0.00046575,120]
[354485392,1740527449444,-503.30879013,0.00046575,120]
[354485393,1740527449453,-2366.38,0.00046575,120]
[354485394,1740527449463,-2705.59,0.00046575,120]
[354485395,1740527449472,-500.0,0.00046575,120]
[354485396,1740527449481,-1464.43,0.00046575,120]
[354485397,1740527449491,-500.0,0.00046575,120]
[354485398,1740527449500,-502.3225525,0.00046575,120]
[354485399,1740527449510,-556.21,0.00046575,120]
[354485400,1740527449519,-518.26,0.00046575,120]
[354485401,1740527449529,-500.0,0.00046575,120]
[354485402,1740527449539,-3177.65,0.00046575,120]
[354485403,1740527449548,-1122.25,0.00046575,120]
[354485404,1740527449557,-4320.56,0.00046575,120]
[354485405,1740527449567,-1637.5,0.00046575,120]
[354485406,1740527449577,-5563.67,0.00046575,120]
[354485407,1740527449586,-500.0,0.00046575,120]
[354485408,1740527449596,-506.9024406,0.00046575,120]
[354485409,1740527449605,-4755.24,0.00046575,120]
[354485410,1740527449615,-11788.35,0.00046575,120]
[354485411,1740527449624,-1611.38,0.00046575,120]
[354485412,1740527449634,-1296.7,0.00046575,120]
[354485413,1740527449643,-5768.58,0.00046575,120]
[354485414,1740527449652,-1952.29,0.00046575,120]
[354485415,1740527449662,-500.0,0.00046575,120]
[354485416,1740527449671,-814.01,0.00046575,120]
[354485417,1740527449681,-500.0,0.00046575,120]
[354485418,1740527449691,-1440.06,0.00046575,120]
[354485419,1740527449700,-500.0,0.00046575,120]
[354485420,1740527449711,-629.58,0.00046575,120]
[354485421,1740527449720,-506.54537971,0.00046575,120]
[354485422,1740527449734,-500.0,0.00046575,120]
[354485423,1740527449744,-504.24432969,0.00046575,120]
[354485424,1740527449754,-1235.75,0.00046575,120]
[354485425,1740527449764,-500.0,0.00046575,120]